[Event "4NCL 2021-22"]
[Site "England"]
[Date "2022.03.27"]
[Round "6.55"]
[White "Willson, Ollie"]
[Black "Chan, Nevil"]
[Result "1-0"]
[ECO "B00"]
[WhiteElo "2108"]
[BlackElo "2010"]
[Annotator "NA"]
[PlyCount "59"]
[EventDate "2021.11.27"]
[EventType "team-tourn"]
[EventCountry "ENG"]
[SourceTitle "playchess.com"]
[Source "ChessBase"]
[SourceQuality "1"]
[TimeControl "40/6000+30:3000+30"]

1. e4 {[%emt 0:03:14]} Nc6 {[%emt 0:15:08]} 2. d4 {[%emt 0:00:00]} e5 {[%emt 0:00:17]} 3. d5 {[%emt 0:00:19]} Nce7 {[%emt 0:01:00]} 4. Nf3 {[%emt 0:00:10]} Ng6 {[%emt 0:00:36]} 5. h4 {[%emt 0:00:03]} h5 {[%emt 0:01:15]} 6. g3 {[%emt 0:08:39]} Nf6 {[%emt 0:05:06]} 7. Bg5 {[%emt 0:02:31]} Bc5 {[%emt 0:06:06]} 8. Bg2 {[%emt 0:14:36]} d6 {[%emt 0:04:03]} 9. Qd3 {[%emt 0:11:49]} Nf8 {[%emt 0:05:54]} 10. Nbd2 {[%emt 0:03:51]} a6 {[%emt 0:06:22]} 11. c4 {[%emt 0:03:33]} N8h7 {[%emt 0:02:30]} 12. Be3 {[%emt 0:00:35]} Bxe3 {[%emt 0:10:47]} 13. Qxe3 {[%emt 0:00:03]} c6 {[%emt 0:00:33]} 14. O-O {[%emt 0:15:19]} c5 {[%emt 0:06:38]} 15. a3 {[%emt 0:15:30]} O-O {[%emt 0:07:18]} 16. b4 {[%emt 0:01:48]} b6 {[%emt 0:00:38]} 17. Qc3 {[%emt 0:00:42]} Bd7 {[%emt 0:02:24]} 18. bxc5 {[%emt 0:04:16]} bxc5 {[%emt 0:02:11]} 19. Rab1 {[%emt 0:03:48]} Qc7 {[%emt 0:05:08]} 20. Ne1 {[%emt 0:02:45]} Rfb8 {[%emt 0:06:25]} 21. Nd3 {[%emt 0:00:21]} Ne8 {[%emt 0:03:57]} 22. f4 {[%emt 0:05:10]} exf4 {[%emt 0:09:56]} 23. gxf4 {[%emt 0:02:51]} Rxb1 {[%emt 0:03:08]} 24. Rxb1 {[%emt 0:00:03]} Rb8 {[%emt 0:00:19]} 25. Rxb8 {[%emt 0:04:16]} Qxb8 {[%emt 0:00:01]} 26. Qa5 {[%emt 0:00:27]} Bg4 {[%emt 0:02:54]} 27. Kf2 {[%emt 0:04:22]} Bd1 {[%emt 0:01:36]} 28. Bh3 {[%emt 0:02:26]} Qc7 {[%emt 0:01:22]} 29. Qxc7 {[%emt 0:00:34]} Nxc7 {[%emt 0:00:01]} 30. e5 {[%emt 0:00:00]} 1-0

[Event "4NCL 2021-22"]
[Site "England"]
[Date "2022.03.27"]
[Round "6.56"]
[White "Gooding, Ian"]
[Black "Graham, Cassie M"]
[Result "1-0"]
[ECO "B76"]
[WhiteElo "1932"]
[BlackElo "1978"]
[Annotator "NA"]
[PlyCount "57"]
[EventDate "2021.11.27"]
[EventType "team-tourn"]
[EventCountry "ENG"]
[SourceTitle "playchess.com"]
[Source "ChessBase"]
[SourceQuality "1"]
[TimeControl "40/6000+30:3000+30"]

1. e4 {[%emt 0:00:03]} c5 {[%emt 0:00:09]} 2. Nf3 {[%emt 0:00:06]} d6 {[%emt 0:00:08]} 3. d4 {[%emt 0:00:05]} cxd4 {[%emt 0:00:07]} 4. Nxd4 {[%emt 0:00:05]} Nf6 {[%emt 0:00:11]} 5. Nc3 {[%emt 0:00:08]} g6 {[%emt 0:00:13]} 6. Be3 {[%emt 0:00:07]} Bg7 {[%emt 0:00:06]} 7. f3 {[%emt 0:00:06]} O-O {[%emt 0:00:13]} 8. Qd2 {[%emt 0:00:06]} Nc6 {[%emt 0:00:07]} 9. O-O-O {[%emt 0:00:06]} d5 {[%emt 0:00:30]} 10. Qe1 {[%emt 0:02:07]} e5 {[%emt 0:01:31]} 11. Nxc6 {[%emt 0:01:13]} bxc6 {[%emt 0:00:06]} 12. exd5 {[%emt 0:01:05]} Nxd5 {[%emt 0:00:40]} 13. Bc4 {[%emt 0:01:19]} Be6 {[%emt 0:04:27]} 14. Bc5 {[%emt 0:01:04]} Re8 {[%emt 0:06:08]} 15. Ne4 {[%emt 0:00:26]} a5 {[%emt 0:16:22]} 16. g4 {[%emt 0:04:28]} h6 {[%emt 0:11:47]} 17. h4 {[%emt 0:05:49]} Rb8 {[%emt 0:07:35]} 18. Bb3 {[%emt 0:13:37]} Rxb3 {[%emt 0:17:41]} 19. axb3 {[%emt 0:02:30]} Qa8 {[%emt 0:00:14]} 20. Ba3 {[%emt 0:20:34]} Nf6 {[%emt 0:07:58]} 21. g5 {[%emt 0:05:04]} Nd7 {[%emt 0:01:45]} 22. h5 {[%emt 0:03:08]} gxh5 {[%emt 0:12:54]} 23. gxh6 {[%emt 0:04:01]} Bxh6+ {[%emt 0:00:52]} 24. Kb1 {[%emt 0:00:05]} f5 {[%emt 0:15:46]} 25. Qg3+ {[%emt 0:00:56]} Kf7 {[%emt 0:00:39]} 26. Nd6+ {[%emt 0:01:06]} Kf6 {[%emt 0:00:05]} 27. Rxh5 {[%emt 0:00:31]} Rh8 {[%emt 0:01:46]} 28. Qh4+ {[%emt 0:01:12]} Kg7 {[%emt 0:00:13]} 29. Rg1+ {[%emt 0:00:52]} 1-0

[Event "4NCL 2021-22"]
[Site "England"]
[Date "2022.03.27"]
[Round "6.57"]
[White "Ratnesan, Ranesh"]
[Black "Kosten, Anthony C."]
[Result "1/2-1/2"]
[ECO "E11"]
[WhiteElo "2258"]
[BlackElo "2367"]
[Annotator "ChessBase"]
[PlyCount "63"]
[EventDate "2021.11.27"]
[EventType "team-tourn"]
[EventCountry "ENG"]
[SourceTitle "playchess.com"]
[Source "ChessBase"]
[SourceQuality "1"]
[TimeControl "40/6000+30:3000+30"]

1. d4 {[%emt 0:00:02]} Nf6 {[%emt 0:00:06]} 2. c4 {[%emt 0:00:07]} e6 {[%emt 0:00:07]} 3. Nf3 {[%emt 0:00:12]} Bb4+ {[%emt 0:00:36]} 4. Bd2 {[%emt 0:00:37]} Qe7 {[%emt 0:00:40]} 5. e3 {[%emt 0:01:02]} Bxd2+ {[%emt 0:02:30]} 6. Qxd2 {[%emt 0:01:34]} O-O {[%emt 0:00:38]} 7. Nc3 {[%emt 0:00:47]} d6 {[%emt 0:00:19]} 8. Bd3 {[%emt 0:11:24]} e5 {[%emt 0:00:34]} 9. Bc2 {[%emt 0:00:41]} Nbd7 {[%emt 0:14:11]} 10. O-O {[%emt 0:01:13]} Nb6 {[%emt 0:04:00]} 11. b3 {[%emt 0:03:51]} Bg4 {[%emt 0:00:38]} 12. Ng5 {[%emt 0:12:22]} h6 {[%emt 0:01:39]} 13. Nge4 {[%emt 0:00:43]} Nxe4 {[%emt 0:01:27]} 14. Bxe4 {[%emt 0:00:07]} c6 {[%emt 0:02:19]} 15. f3 {[%emt 0:09:07]} Bd7 {[%emt 0:02:06]} 16. Rae1 {[%emt 0:02:04]} f5 {[%emt 0:02:15]} 17. Bb1 {[%emt 0:03:08]} Rae8 {[%emt 0:02:17]} 18. f4 {[%emt 0:10:49]} e4 {[%emt 0:03:56]} 19. a4 {[%emt 0:05:36]} a5 {[%emt 0:04:02]} 20. d5 {[%emt 0:04:51]} c5 {[%emt 0:02:28]} 21. g4 {[%emt 0:02:45]} Qh4 {[%emt 0:06:31]} 22. Qg2 {[%emt 0:04:16]} Rf6 {[%emt 0:02:17]} 23. Qg3 {[%emt 0:02:58]} Qxg3+ {[%emt 0:02:25]} 24. hxg3 {[%emt 0:00:33]} Rg6 {[%emt 0:03:57]} 25. gxf5 {[%emt 0:00:21]} Bxf5 {[%emt 0:00:07]} 26. Kf2 {[%emt 0:01:17]} Nd7 {[%emt 0:00:27]} 27. Rh1 {[%emt 0:01:50]} Nf6 {[%emt 0:00:33]} 28. Reg1 {[%emt 0:00:40]} Bg4 {[%emt 0:02:22]} 29. Ke1 {[%emt 0:04:57]} Kf8 {[%emt 0:11:18]} 30. Bc2 {[%emt 0:00:53]} h5 {[%emt 0:03:24]} 31. Bd1 {[%emt 0:02:27]} Bxd1 {[%emt 0:04:13]} 32. Nxd1 {[%emt 0:00:38]} 1/2-1/2

[Event "4NCL 2021-22"]
[Site "England"]
[Date "2022.03.27"]
[Round "6.59"]
[White "Merriman, John"]
[Black "Swindells, Jonathan E"]
[Result "1-0"]
[ECO "A65"]
[WhiteElo "2261"]
[BlackElo "2245"]
[Annotator "NA"]
[PlyCount "96"]
[EventDate "2021.11.27"]
[EventType "team-tourn"]
[EventCountry "ENG"]
[SourceTitle "playchess.com"]
[Source "ChessBase"]
[SourceQuality "1"]
[TimeControl "40/6000+30:3000+30"]

1. d4 {[%emt 0:00:46]} Nf6 {[%emt 0:00:04]} 2. c4 {[%emt 0:00:16]} g6 {[%emt 0:00:05]} 3. Nc3 {[%emt 0:00:06]} Bg7 {[%emt 0:00:03]} 4. e4 {[%emt 0:00:10]} d6 {[%emt 0:00:04]} 5. f3 {[%emt 0:00:47]} O-O {[%emt 0:00:08]} 6. Bg5 {[%emt 0:00:06]} c5 {[%emt 0:00:16]} 7. d5 {[%emt 0:00:08]} e6 {[%emt 0:06:53]} 8. Nge2 {[%emt 0:01:41]} h6 {[%emt 0:03:19]} 9. Be3 {[%emt 0:00:24]} exd5 {[%emt 0:00:07]} 10. cxd5 {[%emt 0:00:17]} a6 {[%emt 0:00:07]} 11. a4 {[%emt 0:00:51]} Re8 {[%emt 0:03:00]} 12. Qd2 {[%emt 0:02:58]} h5 {[%emt 0:00:14]} 13. Nc1 {[%emt 0:01:47]} Nbd7 {[%emt 0:00:14]} 14. Be2 {[%emt 0:07:25]} Nh7 {[%emt 0:20:11]} 15. Nd3 {[%emt 0:04:45]} Qe7 {[%emt 0:09:39]} 16. O-O {[%emt 0:10:39]} f5 {[%emt 0:08:34]} 17. Nf2 {[%emt 0:06:04]} h4 {[%emt 0:15:49]} 18. Bh6 {[%emt 0:11:26]} Bxh6 {[%emt 0:07:03]} 19. Qxh6 {[%emt 0:00:12]} Qg5 {[%emt 0:00:00]} 20. Qxg5 {[%emt 0:01:06]} Nxg5 {[%emt 0:00:04]} 21. exf5 {[%emt 0:21:56]} gxf5 {[%emt 0:00:17]} 22. f4 {[%emt 0:00:53]} Ne4 {[%emt 0:09:51]} 23. Nfxe4 {[%emt 0:11:42]} fxe4 {[%emt 0:00:06]} 24. f5 {[%emt 0:06:54]} Nf6 {[%emt 0:00:56]} 25. Rf4 {[%emt 0:03:30]} Kg7 {[%emt 0:00:06]} 26. Raf1 {[%emt 0:04:10]} Re5 {[%emt 0:00:22]} 27. Rxh4 {[%emt 0:00:43]} b5 {[%emt 0:09:17]} 28. axb5 {[%emt 0:04:08]} axb5 {[%emt 0:00:05]} 29. Bxb5 {[%emt 0:00:05]} Rxf5 {[%emt 0:05:38]} 30. Nxe4 {[%emt 0:06:42]} Rxf1+ {[%emt 0:00:06]} 31. Kxf1 {[%emt 0:00:29]} Ra1+ {[%emt 0:07:51]} 32. Kf2 {[%emt 0:00:18]} Rb1 {[%emt 0:00:20]} 33. Nxd6 {[%emt 0:00:25]} Rxb2+ {[%emt 0:00:04]} 34. Kf3 {[%emt 0:01:04]} Bg4+ {[%emt 0:03:18]} 35. Kf4 {[%emt 0:01:43]} Rxg2 {[%emt 0:00:33]} 36. Ne8+ {[%emt 0:01:01]} Nxe8 {[%emt 0:01:40]} 37. Bxe8 {[%emt 0:00:20]} Bc8 {[%emt 0:01:12]} 38. d6 {[%emt 0:00:41]} Rd2 {[%emt 0:00:19]} 39. Ke5 {[%emt 0:00:33]} Re2+ {[%emt 0:00:42]} 40. Re4 {[%emt 0:00:11]} Rxe4+ {[%emt 0:01:06]} 41. Kxe4 {[%emt 0:50:03]} Kf6 {[%emt 0:09:45]} 42. Kd5 {[%emt 0:00:00]} Be6+ {[%emt 0:00:18]} 43. Kxc5 {[%emt 0:00:00]} Bf5 {[%emt 0:00:04]} 44. Kc6 {[%emt 0:00:00]} Be4+ {[%emt 0:00:44]} 45. Kc7 {[%emt 0:00:00]} Bf5 {[%emt 0:00:04]} 46. Bd7 {[%emt 0:00:00]} Bc2 {[%emt 0:02:18]} 47. Bg4 {[%emt 0:00:00]} Ba4 {[%emt 0:00:05]} 48. Bf3 {[%emt 0:03:32]} Ke5 {[%emt 0:00:05]} 1-0

[Event "4NCL 2021-22"]
[Site "England"]
[Date "2022.03.27"]
[Round "6.60"]
[White "Baker, Chris W"]
[Black "Hand, Freddie"]
[Result "1-0"]
[ECO "C55"]
[WhiteElo "2258"]
[BlackElo "2181"]
[Annotator "NA"]
[PlyCount "67"]
[EventDate "2021.11.27"]
[EventType "team-tourn"]
[EventCountry "ENG"]
[SourceTitle "playchess.com"]
[Source "ChessBase"]
[SourceQuality "1"]
[TimeControl "40/6000+30:3000+30"]

1. e4 {[%emt 0:00:13]} e5 {[%emt 0:00:11]} 2. Bc4 {[%emt 0:01:11]} Nf6 {[%emt 0:00:31]} 3. d3 {[%emt 0:00:50]} Nc6 {[%emt 0:02:18]} 4. Nf3 {[%emt 0:01:23]} Be7 {[%emt 0:00:26]} 5. O-O {[%emt 0:00:28]} O-O {[%emt 0:00:40]} 6. Re1 {[%emt 0:05:27]} d6 {[%emt 0:02:45]} 7. a4 {[%emt 0:04:04]} Kh8 {[%emt 0:05:39]} 8. c3 {[%emt 0:06:47]} Ng8 {[%emt 0:02:11]} 9. d4 {[%emt 0:06:28]} f5 {[%emt 0:00:11]} 10. dxe5 {[%emt 0:05:56]} fxe4 {[%emt 0:00:46]} 11. exd6 {[%emt 0:05:11]} Bxd6 {[%emt 0:04:38]} 12. Ng5 {[%emt 0:05:23]} Ne5 {[%emt 0:14:45]} 13. Bxg8 {[%emt 0:01:38]} Kxg8 {[%emt 0:07:16]} 14. Nxe4 {[%emt 0:01:45]} Bf5 {[%emt 0:30:29]} 15. Bg5 {[%emt 0:06:37]} Qd7 {[%emt 0:03:57]} 16. Nxd6 {[%emt 0:00:36]} cxd6 {[%emt 0:01:37]} 17. Qd4 {[%emt 0:02:05]} h6 {[%emt 0:11:28]} 18. Bh4 {[%emt 0:03:49]} Rfe8 {[%emt 0:06:46]} 19. Nd2 {[%emt 0:01:08]} Nd3 {[%emt 0:01:34]} 20. Rxe8+ {[%emt 0:07:04]} Rxe8 {[%emt 0:00:16]} 21. Bg3 {[%emt 0:03:17]} Re2 {[%emt 0:04:03]} 22. Nf1 {[%emt 0:04:29]} Rxb2 {[%emt 0:02:07]} 23. Ne3 {[%emt 0:02:25]} Bg6 {[%emt 0:00:42]} 24. Rd1 {[%emt 0:03:35]} Kh8 {[%emt 0:05:12]} 25. h4 {[%emt 0:02:56]} Qc6 {[%emt 0:01:17]} 26. Rxd3 {[%emt 0:02:36]} Bxd3 {[%emt 0:00:05]} 27. Qxd3 {[%emt 0:00:06]} Qxa4 {[%emt 0:00:06]} 28. Qxd6 {[%emt 0:00:20]} Rb1+ {[%emt 0:00:33]} 29. Kh2 {[%emt 0:00:18]} Qe8 {[%emt 0:01:31]} 30. Be5 {[%emt 0:07:25]} Rb6 {[%emt 0:00:09]} 31. Qc7 {[%emt 0:00:31]} Rg6 {[%emt 0:00:26]} 32. f4 {[%emt 0:02:09]} Qc6 {[%emt 0:00:49]} 33. Qd8+ {[%emt 0:01:29]} Kh7 {[%emt 0:00:01]} 34. f5 {[%emt 0:00:36]} 1-0

[Event "4NCL 2021-22"]
[Site "England"]
[Date "2022.03.27"]
[Round "6.61"]
[White "Young, Daniel J"]
[Black "Snape, Ian L"]
[Result "1-0"]
[ECO "B76"]
[WhiteElo "1938"]
[BlackElo "2169"]
[Annotator "NA"]
[PlyCount "136"]
[EventDate "2021.11.27"]
[EventType "team-tourn"]
[EventCountry "ENG"]
[SourceTitle "playchess.com"]
[Source "ChessBase"]
[SourceQuality "1"]
[TimeControl "40/6000+30:3000+30"]

1. e4 {[%emt 0:00:03]} c5 {[%emt 0:00:07]} 2. Nf3 {[%emt 0:00:15]} d6 {[%emt 0:00:05]} 3. d4 {[%emt 0:00:11]} cxd4 {[%emt 0:00:12]} 4. Nxd4 {[%emt 0:00:08]} Nf6 {[%emt 0:00:04]} 5. Nc3 {[%emt 0:00:15]} g6 {[%emt 0:00:06]} 6. Be3 {[%emt 0:00:09]} Bg7 {[%emt 0:00:04]} 7. f3 {[%emt 0:00:08]} O-O {[%emt 0:00:07]} 8. Qd2 {[%emt 0:00:07]} Nc6 {[%emt 0:00:04]} 9. O-O-O {[%emt 0:00:08]} d5 {[%emt 0:00:10]} 10. exd5 {[%emt 0:01:52]} Nxd5 {[%emt 0:00:08]} 11. Nxc6 {[%emt 0:00:09]} bxc6 {[%emt 0:00:03]} 12. Bd4 {[%emt 0:00:11]} Bxd4 {[%emt 0:00:04]} 13. Qxd4 {[%emt 0:00:24]} Qb6 {[%emt 0:00:02]} 14. Na4 {[%emt 0:06:24]} Qa5 {[%emt 0:03:33]} 15. Nc5 {[%emt 0:30:22]} e5 {[%emt 0:20:39]} 16. Nb3 {[%emt 0:09:26]} Qxa2 {[%emt 0:07:27]} 17. Qxe5 {[%emt 0:03:25]} Bf5 {[%emt 0:01:39]} 18. Bd3 {[%emt 0:08:10]} Rfe8 {[%emt 0:03:57]} 19. Qd4 {[%emt 0:09:26]} Bxd3 {[%emt 0:06:22]} 20. Rxd3 {[%emt 0:04:46]} Nb6 {[%emt 0:25:43]} 21. Kd2 {[%emt 0:16:07]} Qa4 {[%emt 0:00:00]} 22. Qxa4 {[%emt 0:02:53]} Nxa4 {[%emt 0:00:00]} 23. Ra1 {[%emt 0:04:09]} Nxb2 {[%emt 0:01:36]} 24. Rd4 {[%emt 0:02:37]} Red8 {[%emt 0:00:21]} 25. Kc3 {[%emt 0:01:43]} Rxd4 {[%emt 0:00:19]} 26. Nxd4 {[%emt 0:01:09]} c5 {[%emt 0:00:43]} 27. Nc6 {[%emt 0:00:22]} Re8 {[%emt 0:05:39]} 28. Kxb2 {[%emt 0:00:24]} Re2 {[%emt 0:00:03]} 29. Rg1 {[%emt 0:01:07]} a6 {[%emt 0:00:09]} 30. Kc3 {[%emt 0:01:18]} f5 {[%emt 0:00:24]} 31. Kd3 {[%emt 0:00:40]} Re6 {[%emt 0:00:27]} 32. Na5 {[%emt 0:00:33]} Rd6+ {[%emt 0:00:58]} 33. Kc3 {[%emt 0:00:25]} Re6 {[%emt 0:00:15]} 34. Kc4 {[%emt 0:01:19]} Re2 {[%emt 0:00:54]} 35. c3 {[%emt 0:00:26]} Ra2 {[%emt 0:01:07]} 36. Nb3 {[%emt 0:00:26]} Kf7 {[%emt 0:01:20]} 37. Kxc5 {[%emt 0:00:42]} a5 {[%emt 0:00:32]} 38. Nd4 {[%emt 0:02:12]} Rb2 {[%emt 0:01:06]} 39. Ra1 {[%emt 0:03:23]} Rxg2 {[%emt 0:00:06]} 40. Rxa5 {[%emt 0:00:17]} Rxh2 {[%emt 0:00:04]} 41. Kd6 {[%emt 0:52:00]} h5 {[%emt 0:50:15]} 42. c4 {[%emt 0:00:00]} Kf6 {[%emt 0:00:00]} 43. c5 {[%emt 0:00:00]} Rd2 {[%emt 0:00:00]} 44. Kd5 {[%emt 0:00:00]} h4 {[%emt 0:00:00]} 45. Ra6+ {[%emt 0:00:00]} Kg5 {[%emt 0:00:00]} 46. c6 {[%emt 0:00:00]} h3 {[%emt 0:00:00]} 47. c7 {[%emt 0:00:00]} h2 {[%emt 0:00:00]} 48. c8=Q {[%emt 0:00:22]} h1=Q {[%emt 0:00:00]} 49. Rxg6+ {[%emt 0:00:00]} Kf4 {[%emt 0:00:00]} 50. Qxf5+ {[%emt 0:00:00]} Ke3 {[%emt 0:00:00]} 51. Qe4+ {[%emt 0:00:00]} Kf2 {[%emt 0:00:00]} 52. f4 {[%emt 0:00:00]} Qh3 {[%emt 0:00:00]} 53. f5 {[%emt 0:00:00]} Qb3+ {[%emt 0:00:00]} 54. Ke5 {[%emt 0:00:00]} Qb8+ {[%emt 0:00:00]} 55. Rd6 {[%emt 0:00:00]} Qh8+ {[%emt 0:00:00]} 56. f6 {[%emt 0:00:04]} Qe8+ {[%emt 0:00:00]} 57. Kf4 {[%emt 0:00:49]} Qb8 {[%emt 0:00:00]} 58. Qe3+ {[%emt 0:03:03]} Kf1 {[%emt 0:00:00]} 59. Qh3+ {[%emt 0:00:51]} Kf2 {[%emt 0:00:00]} 60. Qe3+ {[%emt 0:02:24]} Kf1 {[%emt 0:00:00]} 61. Qe5 {[%emt 0:01:54]} Qc7 {[%emt 0:00:00]} 62. Qd5 {[%emt 0:01:07]} Qh7 {[%emt 0:00:00]} 63. Qc4+ {[%emt 0:00:17]} Kg2 {[%emt 0:00:00]} 64. Qc6+ {[%emt 0:00:19]} Kf2 {[%emt 0:00:00]} 65. Qf3+ {[%emt 0:00:25]} Kg1 {[%emt 0:00:00]} 66. Ne2+ {[%emt 0:00:45]} Rxe2 {[%emt 0:00:00]} 67. Qxe2 {[%emt 0:00:31]} Qh6+ {[%emt 0:00:00]} 68. Kf5 {[%emt 0:00:36]} Qh7+ {[%emt 0:00:00]} 1-0

[Event "4NCL 2021-22"]
[Site "England"]
[Date "2022.03.27"]
[Round "6.62"]
[White "Ahluwalia, Amardip"]
[Black "Skettos, Nicolas"]
[Result "1/2-1/2"]
[ECO "A21"]
[WhiteElo "2230"]
[BlackElo "1940"]
[Annotator "ChessBase"]
[PlyCount "68"]
[EventDate "2021.11.27"]
[EventType "team-tourn"]
[EventCountry "ENG"]
[SourceTitle "playchess.com"]
[Source "ChessBase"]
[SourceQuality "1"]
[TimeControl "40/6000+30:3000+30"]

1. c4 {[%emt 0:00:07]} e5 {[%emt 0:00:01]} 2. g3 {[%emt 0:00:46]} d6 {[%emt 0:05:05]} 3. Bg2 {[%emt 0:01:09]} f5 {[%emt 0:00:25]} 4. Nc3 {[%emt 0:01:20]} Nf6 {[%emt 0:00:09]} 5. d3 {[%emt 0:02:09]} Be7 {[%emt 0:00:17]} 6. e3 {[%emt 0:00:54]} O-O {[%emt 0:00:06]} 7. Nge2 {[%emt 0:01:39]} c6 {[%emt 0:01:43]} 8. Rb1 {[%emt 0:03:54]} a5 {[%emt 0:05:04]} 9. a3 {[%emt 0:02:47]} Na6 {[%emt 0:03:54]} 10. O-O {[%emt 0:03:55]} Qe8 {[%emt 0:02:17]} 11. d4 {[%emt 0:07:06]} Qh5 {[%emt 0:03:46]} 12. f4 {[%emt 0:18:55]} e4 {[%emt 0:00:29]} 13. Bd2 {[%emt 0:06:06]} h6 {[%emt 0:02:19]} 14. Nc1 {[%emt 0:04:42]} Qf7 {[%emt 0:00:45]} 15. b3 {[%emt 0:02:06]} g5 {[%emt 0:02:09]} 16. N1e2 {[%emt 0:05:38]} g4 {[%emt 0:10:02]} 17. Re1 {[%emt 0:04:40]} h5 {[%emt 0:02:21]} 18. Na4 {[%emt 0:06:49]} Bd8 {[%emt 0:01:24]} 19. Nec3 {[%emt 0:01:40]} h4 {[%emt 0:03:21]} 20. Kf2 {[%emt 0:02:56]} Kg7 {[%emt 0:02:32]} 21. Qc2 {[%emt 0:04:51]} Rh8 {[%emt 0:00:42]} 22. Rh1 {[%emt 0:02:05]} Bd7 {[%emt 0:01:12]} 23. Ne2 {[%emt 0:02:35]} Rc8 {[%emt 0:00:29]} 24. Rhe1 {[%emt 0:02:50]} Bc7 {[%emt 0:02:02]} 25. Rbc1 {[%emt 0:02:04]} Rh5 {[%emt 0:05:10]} 26. Qb1 {[%emt 0:01:13]} Rch8 {[%emt 0:00:48]} 27. Qa1 {[%emt 0:01:45]} Bd8 {[%emt 0:01:10]} 28. Qb1 {[%emt 0:01:32]} Kg6 {[%emt 0:00:48]} 29. Nb2 {[%emt 0:01:29]} R5h6 {[%emt 0:02:54]} 30. Na4 {[%emt 0:00:45]} Nh5 {[%emt 0:04:02]} 31. Rcd1 {[%emt 0:04:04]} Qh7 {[%emt 0:03:42]} 32. Nac3 {[%emt 0:00:58]} Nf6 {[%emt 0:01:09]} 33. Na4 {[%emt 0:01:22]} b6 {[%emt 0:02:05]} 34. Rc1 {[%emt 0:00:45]} Qe7 {[%emt 0:04:23]} 1/2-1/2

[Event "4NCL 2021-22"]
[Site "England"]
[Date "2022.03.27"]
[Round "6.63"]
[White "Bansal, Rohan"]
[Black "Duggan, John E"]
[Result "0-1"]
[ECO "A25"]
[WhiteElo "1971"]
[BlackElo "2085"]
[Annotator "NA"]
[PlyCount "100"]
[EventDate "2021.11.27"]
[EventType "team-tourn"]
[EventCountry "ENG"]
[SourceTitle "playchess.com"]
[Source "ChessBase"]
[SourceQuality "1"]
[TimeControl "40/6000+30:3000+30"]

1. c4 {[%emt 0:03:45]} Nf6 {[%emt 0:01:43]} 2. Nc3 {[%emt 0:01:11]} e5 {[%emt 0:02:27]} 3. g3 {[%emt 0:00:09]} Nc6 {[%emt 0:02:17]} 4. Bg2 {[%emt 0:00:17]} b6 {[%emt 0:02:24]} 5. Nf3 {[%emt 0:06:05]} Rb8 {[%emt 0:05:23]} 6. O-O {[%emt 0:09:02]} Bb7 {[%emt 0:06:51]} 7. d3 {[%emt 0:04:41]} Be7 {[%emt 0:05:32]} 8. a3 {[%emt 0:01:01]} a5 {[%emt 0:01:37]} 9. Nd5 {[%emt 0:10:17]} O-O {[%emt 0:06:02]} 10. e4 {[%emt 0:33:19]} Ne8 {[%emt 0:08:58]} 11. b3 {[%emt 0:07:13]} Bc8 {[%emt 0:10:10]} 12. d4 {[%emt 0:13:03]} exd4 {[%emt 0:10:19]} 13. Nxe7+ {[%emt 0:01:29]} Qxe7 {[%emt 0:02:13]} 14. Nxd4 {[%emt 0:01:44]} Nxd4 {[%emt 0:04:02]} 15. Qxd4 {[%emt 0:00:48]} d6 {[%emt 0:02:52]} 16. Bb2 {[%emt 0:00:25]} Bb7 {[%emt 0:09:17]} 17. Rfe1 {[%emt 0:01:57]} Qf6 {[%emt 0:04:13]} 18. e5 {[%emt 0:09:11]} dxe5 {[%emt 0:01:37]} 19. Qxe5 {[%emt 0:00:22]} Qxe5 {[%emt 0:02:19]} 20. Bxe5 {[%emt 0:00:51]} Bxg2 {[%emt 0:00:17]} 21. Kxg2 {[%emt 0:00:05]} f6 {[%emt 0:00:25]} 22. Bc3 {[%emt 0:01:00]} Nd6 {[%emt 0:01:15]} 23. Rad1 {[%emt 0:01:20]} Rfe8 {[%emt 0:01:18]} 24. Rxe8+ {[%emt 0:01:45]} Rxe8 {[%emt 0:00:35]} 25. Kf1 {[%emt 0:00:22]} Kf7 {[%emt 0:01:59]} 26. a4 {[%emt 0:00:30]} Ne4 {[%emt 0:03:00]} 27. Be1 {[%emt 0:00:26]} Ke6 {[%emt 0:03:20]} 28. b4 {[%emt 0:01:01]} axb4 {[%emt 0:00:58]} 29. Bxb4 {[%emt 0:00:10]} c5 {[%emt 0:03:25]} 30. Re1 {[%emt 0:01:17]} Kd7 {[%emt 0:00:07]} 31. Rd1+ {[%emt 0:00:31]} Kc6 {[%emt 0:00:25]} 32. Be1 {[%emt 0:00:13]} Nd6 {[%emt 0:00:06]} 33. a5 {[%emt 0:00:04]} bxa5 {[%emt 0:00:19]} 34. Bxa5 {[%emt 0:00:03]} Nxc4 {[%emt 0:00:08]} 35. Bc3 {[%emt 0:00:21]} Re7 {[%emt 0:01:14]} 36. Rb1 {[%emt 0:01:11]} Nb6 {[%emt 0:03:10]} 37. Rc1 {[%emt 0:01:03]} Na4 {[%emt 0:01:29]} 38. Bd2 {[%emt 0:00:15]} Kb5 {[%emt 0:00:21]} 39. Rb1+ {[%emt 0:00:43]} Kc4 {[%emt 0:00:21]} 40. Rc1+ {[%emt 0:00:28]} Kb3 {[%emt 0:00:41]} 41. Be3 {[%emt 0:50:25]} c4 {[%emt 0:50:22]} 42. Ke2 {[%emt 0:00:50]} c3 {[%emt 0:01:25]} 43. Ra1 {[%emt 0:00:00]} c2 {[%emt 0:00:00]} 44. Kd3 {[%emt 0:00:00]} Nb2+ {[%emt 0:00:00]} 45. Kd4 {[%emt 0:00:00]} Rd7+ {[%emt 0:00:00]} 46. Ke4 {[%emt 0:00:00]} Na4 {[%emt 0:00:00]} 47. Kf5 {[%emt 0:00:00]} Rd6 {[%emt 0:00:00]} 48. Bf4 {[%emt 0:00:00]} g6+ {[%emt 0:00:00]} 49. Ke4 {[%emt 0:00:00]} Rd1 {[%emt 0:00:00]} 50. Bc1 {[%emt 0:00:00]} Nc3+ {[%emt 0:04:04]} 0-1